[Event "Titled Tuesday Blitz August 08 Early 2023"]
[White "Lisjak, Zlatko"]
[Black "Chudnovsky, Jacob"]
[WhiteFideId "14502186"]
[BlackFideId "2010046"]
[WhiteElo "2182"]
[BlackElo "2392"]
[Result "1/2-1/2"]
[Round "5"]
[TimeControl "180+1"]
[Date "2023.08.08"]
[WhiteClock "0:00:11"]
[BlackClock "0:00:42"]
[Board "206"]

1. d4 {[%clk 0:03:00]}  Nf6 {[%clk 0:02:58]} 2. Nc3 {[%clk 0:03:00]}  d5 {[%clk 0:02:57]} 3. Bf4 {[%clk 0:02:59]}  c6 {[%clk 0:02:47]} 4. e3 {[%clk 0:02:58]}  g6 {[%clk 0:02:47]} 5. h4 {[%clk 0:02:56]}  Bg7 {[%clk 0:02:45]} 6. h5 {[%clk 0:02:57]}  Nxh5 {[%clk 0:02:45]} 7. Rxh5 {[%clk 0:02:57]}  gxh5 {[%clk 0:02:46]} 8. Qxh5 {[%clk 0:02:57]}  Nd7 {[%clk 0:02:45]} 9. Nf3 {[%clk 0:02:50]}  Nf6 {[%clk 0:02:45]} 10. Qh4 {[%clk 0:02:49]}  Bf5 {[%clk 0:02:43]} 11. O-O-O {[%clk 0:02:48]}  Qb6 {[%clk 0:02:39]} 12. Ne5 {[%clk 0:02:42]}  Bg6 {[%clk 0:02:35]} 13. f3 {[%clk 0:02:39]}  O-O-O {[%clk 0:02:32]} 14. g4 {[%clk 0:02:37]}  e6 {[%clk 0:02:25]} 15. Bg5 {[%clk 0:02:33]}  h5 {[%clk 0:02:15]} 16. Bxf6 {[%clk 0:02:18]}  hxg4 {[%clk 0:02:14]} 17. Bxd8 {[%clk 0:02:09]}  Rxh4 {[%clk 0:02:10]} 18. Bxb6 {[%clk 0:02:07]}  Bxe5 {[%clk 0:02:09]} 19. Bxa7 {[%clk 0:01:55]}  Bg7 {[%clk 0:02:04]} 20. fxg4 {[%clk 0:01:53]}  Rxg4 {[%clk 0:02:03]} 21. Bd3 {[%clk 0:01:46]}  Bh6 {[%clk 0:02:02]} 22. Re1 {[%clk 0:01:42]}  Bxd3 {[%clk 0:01:54]} 23. cxd3 {[%clk 0:01:42]}  Kc7 {[%clk 0:01:55]} 24. Bc5 {[%clk 0:01:38]}  b6 {[%clk 0:01:55]} 25. Be7 {[%clk 0:01:33]}  Rxd4 {[%clk 0:01:54]} 26. Kc2 {[%clk 0:01:27]}  Rg4 {[%clk 0:01:52]} 27. Re2 {[%clk 0:01:22]}  Kd7 {[%clk 0:01:51]} 28. Bf6 {[%clk 0:01:20]}  Rg6 {[%clk 0:01:49]} 29. Be5 {[%clk 0:01:19]}  f6 {[%clk 0:01:49]} 30. Bf4 {[%clk 0:01:19]}  Bg7 {[%clk 0:01:45]} 31. d4 {[%clk 0:01:16]}  e5 {[%clk 0:01:45]} 32. Bh2 {[%clk 0:01:13]}  Rg4 {[%clk 0:01:43]} 33. dxe5 {[%clk 0:01:11]}  fxe5 {[%clk 0:01:42]} 34. e4 {[%clk 0:01:02]}  d4 {[%clk 0:01:38]} 35. Nd1 {[%clk 0:01:00]}  Ke6 {[%clk 0:01:36]} 36. Kd3 {[%clk 0:00:56]}  b5 {[%clk 0:01:34]} 37. b4 {[%clk 0:00:51]}  Bf8 {[%clk 0:01:32]} 38. a3 {[%clk 0:00:50]}  c5 {[%clk 0:01:32]} 39. bxc5 {[%clk 0:00:46]}  Bxc5 {[%clk 0:01:33]} 40. Rb2 {[%clk 0:00:45]}  Rh4 {[%clk 0:01:26]} 41. Rxb5 {[%clk 0:00:36]}  Bd6 {[%clk 0:01:06]} 42. Bg1 {[%clk 0:00:32]}  Bxa3 {[%clk 0:01:03]} 43. Rb6+ {[%clk 0:00:30]}  Bd6 {[%clk 0:01:01]} 44. Bf2 {[%clk 0:00:27]}  Rh3+ {[%clk 0:01:00]} 45. Kd2 {[%clk 0:00:26]}  Kd7 {[%clk 0:00:59]} 46. Nb2 {[%clk 0:00:24]}  Rf3 {[%clk 0:00:58]} 47. Nd3 {[%clk 0:00:18]}  Kc7 {[%clk 0:00:57]} 48. Rb1 {[%clk 0:00:17]}  Be7 {[%clk 0:00:55]} 49. Rd1 {[%clk 0:00:15]}  Bg5+ {[%clk 0:00:54]} 50. Kc2 {[%clk 0:00:15]}  Kd6 {[%clk 0:00:52]} 51. Kb3 {[%clk 0:00:15]}  Be3 {[%clk 0:00:50]} 52. Bxe3 {[%clk 0:00:13]}  Rxe3 {[%clk 0:00:49]} 53. Kc4 {[%clk 0:00:11]}  Rxe4 {[%clk 0:00:49]} 54. Re1 {[%clk 0:00:12]}  Rxe1 {[%clk 0:00:45]} 55. Nxe1 {[%clk 0:00:11]}  Ke6 {[%clk 0:00:46]} 56. Nc2 {[%clk 0:00:11]}  Kf5 {[%clk 0:00:44]} 57. Nxd4+ {[%clk 0:00:11]}  exd4 {[%clk 0:00:42]} 58. Kxd4 {[%clk 0:00:11]} 1/2-1/2


[Site "https://www.chess.com"]

[Event "Titled Tuesday Blitz August 08 Early 2023"]
[White "Araujo Filho, Luiz Antonio Coel"]
[Black "Luong Phuong Hanh"]
[WhiteFideId "2130661"]
[BlackFideId "12401013"]
[WhiteElo "2178"]
[BlackElo "2383"]
[Result "1-0"]
[Round "5"]
[TimeControl "180+1"]
[Date "2023.08.08"]
[WhiteClock "0:01:25"]
[BlackClock "0:01:05"]
[Board "208"]

1. d4 {[%clk 0:02:58]}  Nf6 {[%clk 0:02:29]} 2. Nf3 {[%clk 0:02:57]}  g6 {[%clk 0:02:29]} 3. c4 {[%clk 0:02:56]}  Bg7 {[%clk 0:02:29]} 4. Nc3 {[%clk 0:02:56]}  d5 {[%clk 0:02:30]} 5. cxd5 {[%clk 0:02:56]}  Nxd5 {[%clk 0:02:31]} 6. e4 {[%clk 0:02:57]}  Nxc3 {[%clk 0:02:31]} 7. bxc3 {[%clk 0:02:58]}  c5 {[%clk 0:02:30]} 8. Be2 {[%clk 0:02:57]}  O-O {[%clk 0:02:21]} 9. O-O {[%clk 0:02:57]}  Bg4 {[%clk 0:02:19]} 10. Be3 {[%clk 0:02:56]}  Qc7 {[%clk 0:02:15]} 11. Rb1 {[%clk 0:02:46]}  Rd8 {[%clk 0:02:09]} 12. h3 {[%clk 0:02:43]}  Bxf3 {[%clk 0:02:08]} 13. Bxf3 {[%clk 0:02:44]}  Nc6 {[%clk 0:02:06]} 14. d5 {[%clk 0:02:35]}  Bxc3 {[%clk 0:02:04]} 15. Qc2 {[%clk 0:02:28]}  Ne5 {[%clk 0:01:43]} 16. Qxc3 {[%clk 0:02:27]}  Nxf3+ {[%clk 0:01:43]} 17. gxf3 {[%clk 0:02:27]}  b6 {[%clk 0:01:44]} 18. Rbd1 {[%clk 0:02:20]}  Qd7 {[%clk 0:01:44]} 19. Kg2 {[%clk 0:02:18]}  Rac8 {[%clk 0:01:42]} 20. Qe5 {[%clk 0:02:15]}  Qe8 {[%clk 0:01:35]} 21. Bh6 {[%clk 0:02:03]}  f6 {[%clk 0:01:15]} 22. Qe6+ {[%clk 0:01:57]}  Kh8 {[%clk 0:01:15]} 23. d6 {[%clk 0:01:49]}  Rc6 {[%clk 0:01:12]} 24. Qxe7 {[%clk 0:01:38]}  Qxe7 {[%clk 0:01:08]} 25. dxe7 {[%clk 0:01:37]}  Re8 {[%clk 0:01:05]} 26. Rd8 {[%clk 0:01:25]} 1-0


[Site "https://www.chess.com"]

[Event "Titled Tuesday Blitz August 08 Early 2023"]
[White "Ventura Bolet, Maxim"]
[Black "cycygogne"]
[WhiteFideId "22238824"]
[WhiteElo "2378"]
[BlackElo "2174"]
[Result "1-0"]
[Round "5"]
[TimeControl "180+1"]
[Date "2023.08.08"]
[WhiteClock "0:01:26"]
[BlackClock "0:01:47"]
[Board "209"]

1. e4 {[%clk 0:03:00]}  e5 {[%clk 0:02:59]} 2. Bc4 {[%clk 0:03:00]}  Nc6 {[%clk 0:02:58]} 3. Nc3 {[%clk 0:02:59]}  Bc5 {[%clk 0:02:57]} 4. Qg4 {[%clk 0:02:58]}  g6 {[%clk 0:02:53]} 5. Qg3 {[%clk 0:02:46]}  Nd4 {[%clk 0:02:47]} 6. Bb3 {[%clk 0:02:44]}  Nf6 {[%clk 0:02:33]} 7. Qxe5+ {[%clk 0:02:42]}  Qe7 {[%clk 0:02:25]} 8. Qxe7+ {[%clk 0:02:35]}  Kxe7 {[%clk 0:02:22]} 9. d3 {[%clk 0:02:29]}  Re8 {[%clk 0:02:13]} 10. Bg5 {[%clk 0:02:25]}  c6 {[%clk 0:02:12]} 11. e5 {[%clk 0:02:18]}  Kf8 {[%clk 0:02:02]} 12. Bxf6 {[%clk 0:02:17]}  d6 {[%clk 0:02:03]} 13. Ne4 {[%clk 0:01:58]}  Nxb3 {[%clk 0:01:56]} 14. axb3 {[%clk 0:01:54]}  Bd4 {[%clk 0:01:56]} 15. Nxd6 {[%clk 0:01:40]}  Re6 {[%clk 0:01:56]} 16. Nxc8 {[%clk 0:01:38]}  Rxc8 {[%clk 0:01:57]} 17. Nf3 {[%clk 0:01:35]}  Bxb2 {[%clk 0:01:52]} 18. Rxa7 {[%clk 0:01:34]}  Rce8 {[%clk 0:01:47]} 19. O-O {[%clk 0:01:26]} 1-0


[Site "https://www.chess.com"]

[Event "Titled Tuesday Blitz August 08 Early 2023"]
[White "Vifleemskaia, Svetlana"]
[Black "Grigoryan, Meri"]
[WhiteFideId "4129490"]
[BlackFideId "13300571"]
[WhiteElo "2376"]
[BlackElo "2172"]
[Result "1-0"]
[Round "5"]
[TimeControl "180+1"]
[Date "2023.08.08"]
[WhiteClock "0:00:02"]
[BlackClock "0:00:11"]
[Board "210"]

1. d4 {[%clk 0:02:52]}  d5 {[%clk 0:02:59]} 2. c4 {[%clk 0:02:51]}  e5 {[%clk 0:02:59]} 3. dxe5 {[%clk 0:02:49]}  d4 {[%clk 0:02:59]} 4. Nf3 {[%clk 0:02:48]}  Nc6 {[%clk 0:02:59]} 5. a3 {[%clk 0:02:45]}  a5 {[%clk 0:02:59]} 6. e3 {[%clk 0:02:45]}  Bc5 {[%clk 0:02:59]} 7. exd4 {[%clk 0:02:41]}  Bxd4 {[%clk 0:02:58]} 8. Nxd4 {[%clk 0:02:35]}  Qxd4 {[%clk 0:02:57]} 9. Nc3 {[%clk 0:02:30]}  Qxd1+ {[%clk 0:02:10]} 10. Nxd1 {[%clk 0:02:25]}  Bf5 {[%clk 0:01:28]} 11. Ne3 {[%clk 0:02:16]}  Nd4 {[%clk 0:01:14]} 12. Be2 {[%clk 0:02:10]}  Nb3 {[%clk 0:01:08]} 13. Nxf5 {[%clk 0:01:56]}  Nxa1 {[%clk 0:01:08]} 14. Nxg7+ {[%clk 0:01:39]}  Kf8 {[%clk 0:01:08]} 15. Nf5 {[%clk 0:01:38]}  Nb3 {[%clk 0:01:08]} 16. Be3 {[%clk 0:01:33]}  Ne7 {[%clk 0:00:48]} 17. Bh6+ {[%clk 0:01:15]}  Ke8 {[%clk 0:00:48]} 18. Ng7+ {[%clk 0:01:11]}  Kd7 {[%clk 0:00:44]} 19. Bg4+ {[%clk 0:01:11]}  Kc6 {[%clk 0:00:43]} 20. Bf3+ {[%clk 0:00:47]}  Kb6 {[%clk 0:00:40]} 21. Be3+ {[%clk 0:00:44]}  c5 {[%clk 0:00:40]} 22. O-O {[%clk 0:00:35]}  Nd4 {[%clk 0:00:39]} 23. Bxd4 {[%clk 0:00:19]}  cxd4 {[%clk 0:00:39]} 24. Rd1 {[%clk 0:00:17]}  Rad8 {[%clk 0:00:38]} 25. b4 {[%clk 0:00:11]}  Nc6 {[%clk 0:00:31]} 26. c5+ {[%clk 0:00:09]}  Ka7 {[%clk 0:00:26]} 27. e6 {[%clk 0:00:10]}  Rhg8 {[%clk 0:00:21]} 28. Nf5 {[%clk 0:00:05]}  fxe6 {[%clk 0:00:21]} 29. Bxc6 {[%clk 0:00:03]}  bxc6 {[%clk 0:00:21]} 30. Ne7 {[%clk 0:00:04]}  Rge8 {[%clk 0:00:12]} 31. Nxc6+ {[%clk 0:00:03]}  Kb7 {[%clk 0:00:12]} 32. Nxd8+ {[%clk 0:00:04]}  Rxd8 {[%clk 0:00:13]} 33. Kf1 {[%clk 0:00:03]}  Kc6 {[%clk 0:00:13]} 34. Ke2 {[%clk 0:00:03]}  axb4 {[%clk 0:00:13]} 35. axb4 {[%clk 0:00:02]}  Kb5 {[%clk 0:00:12]} 36. Kf3 {[%clk 0:00:02]}  Kxb4 {[%clk 0:00:12]} 37. c6 {[%clk 0:00:02]}  e5 {[%clk 0:00:11]} 38. Ke4 {[%clk 0:00:02]}  Kc5 {[%clk 0:00:10]} 39. Kxe5 {[%clk 0:00:02]}  Kxc6 {[%clk 0:00:10]} 40. Rxd4 {[%clk 0:00:02]}  Re8+ {[%clk 0:00:10]} 41. Kf4 {[%clk 0:00:02]}  Rf8+ {[%clk 0:00:10]} 42. Ke3 {[%clk 0:00:03]}  Re8+ {[%clk 0:00:10]} 43. Re4 {[%clk 0:00:03]}  Rg8 {[%clk 0:00:10]} 44. g3 {[%clk 0:00:03]}  Kd5 {[%clk 0:00:11]} 45. f4 {[%clk 0:00:03]}  Ra8 {[%clk 0:00:11]} 46. Re5+ {[%clk 0:00:03]}  Kd6 {[%clk 0:00:11]} 47. Kf3 {[%clk 0:00:04]}  Ra2 {[%clk 0:00:11]} 48. h3 {[%clk 0:00:03]}  Ra3+ {[%clk 0:00:11]} 49. Kg4 {[%clk 0:00:03]}  Ra2 {[%clk 0:00:11]} 50. h4 {[%clk 0:00:04]}  Rg2 {[%clk 0:00:11]} 51. h5 {[%clk 0:00:04]}  Rh2 {[%clk 0:00:11]} 52. Rg5 {[%clk 0:00:03]}  Rh3 {[%clk 0:00:11]} 53. Rg7 {[%clk 0:00:02]} 1-0


[Site "https://www.chess.com"]

[Event "Titled Tuesday Blitz August 08 Early 2023"]
[White "Butti, Enrique"]
[Black "Gueci, Tea"]
[WhiteFideId "3700470"]
[BlackFideId "872342"]
[WhiteElo "2157"]
[BlackElo "2372"]
[Result "0-1"]
[Round "5"]
[TimeControl "180+1"]
[Date "2023.08.08"]
[WhiteClock "0:00:23"]
[BlackClock "0:00:37"]
[Board "212"]

1. d4 {[%clk 0:02:59]}  g6 {[%clk 0:02:59]} 2. e4 {[%clk 0:02:56]}  Bg7 {[%clk 0:02:59]} 3. c3 {[%clk 0:02:56]}  d6 {[%clk 0:02:59]} 4. f4 {[%clk 0:02:55]}  c6 {[%clk 0:02:49]} 5. Nf3 {[%clk 0:02:54]}  Bg4 {[%clk 0:02:49]} 6. h3 {[%clk 0:02:51]}  Bxf3 {[%clk 0:02:46]} 7. Qxf3 {[%clk 0:02:50]}  e5 {[%clk 0:02:45]} 8. fxe5 {[%clk 0:02:49]}  dxe5 {[%clk 0:02:46]} 9. Bc4 {[%clk 0:02:47]}  Qe7 {[%clk 0:02:40]} 10. O-O {[%clk 0:02:45]}  f6 {[%clk 0:02:32]} 11. Be3 {[%clk 0:02:29]}  Nd7 {[%clk 0:02:27]} 12. Nd2 {[%clk 0:02:24]}  O-O-O {[%clk 0:02:27]} 13. a4 {[%clk 0:02:22]}  Kb8 {[%clk 0:02:24]} 14. a5 {[%clk 0:02:21]}  h5 {[%clk 0:02:14]} 15. a6 {[%clk 0:02:12]}  b6 {[%clk 0:02:14]} 16. d5 {[%clk 0:02:10]}  c5 {[%clk 0:02:10]} 17. Bb5 {[%clk 0:02:06]}  Nh6 {[%clk 0:02:08]} 18. Nc4 {[%clk 0:02:03]}  Nf7 {[%clk 0:02:07]} 19. Bc6 {[%clk 0:01:51]}  Nd6 {[%clk 0:02:05]} 20. Nxd6 {[%clk 0:01:44]}  Qxd6 {[%clk 0:02:06]} 21. Qe2 {[%clk 0:01:42]}  Bh6 {[%clk 0:01:56]} 22. Bf2 {[%clk 0:01:40]}  Bf4 {[%clk 0:01:38]} 23. Qb5 {[%clk 0:01:35]}  Kc7 {[%clk 0:01:28]} 24. b4 {[%clk 0:01:32]}  Rb8 {[%clk 0:01:12]} 25. Bxd7 {[%clk 0:01:20]}  Qxd7 {[%clk 0:01:11]} 26. Qxd7+ {[%clk 0:01:20]}  Kxd7 {[%clk 0:01:12]} 27. bxc5 {[%clk 0:01:20]}  bxc5 {[%clk 0:01:12]} 28. Bxc5 {[%clk 0:01:20]}  Ra8 {[%clk 0:01:05]} 29. Rab1 {[%clk 0:01:18]}  Rhc8 {[%clk 0:01:02]} 30. Rb7+ {[%clk 0:01:14]}  Rc7 {[%clk 0:01:03]} 31. d6 {[%clk 0:01:08]}  Rxb7 {[%clk 0:01:00]} 32. axb7 {[%clk 0:01:07]}  Rb8 {[%clk 0:00:58]} 33. Rb1 {[%clk 0:01:06]}  Kc6 {[%clk 0:00:58]} 34. d7 {[%clk 0:00:58]}  Kxc5 {[%clk 0:00:57]} 35. d8=Q {[%clk 0:00:56]}  Rxd8 {[%clk 0:00:57]} 36. b8=Q {[%clk 0:00:54]}  Rxb8 {[%clk 0:00:58]} 37. Rxb8 {[%clk 0:00:53]}  a5 {[%clk 0:00:55]} 38. Rf8 {[%clk 0:00:49]}  a4 {[%clk 0:00:48]} 39. Rxf6 {[%clk 0:00:47]}  g5 {[%clk 0:00:46]} 40. Ra6 {[%clk 0:00:45]}  Kb5 {[%clk 0:00:46]} 41. Ra8 {[%clk 0:00:44]}  Bd2 {[%clk 0:00:41]} 42. c4+ {[%clk 0:00:43]}  Kb4 {[%clk 0:00:42]} 43. c5 {[%clk 0:00:42]}  Be3+ {[%clk 0:00:42]} 44. Kf1 {[%clk 0:00:41]}  Bxc5 {[%clk 0:00:43]} 45. Ke2 {[%clk 0:00:41]}  Kb3 {[%clk 0:00:42]} 46. Kd3 {[%clk 0:00:40]}  a3 {[%clk 0:00:42]} 47. Rb8+ {[%clk 0:00:40]}  Bb4 {[%clk 0:00:42]} 48. Ra8 {[%clk 0:00:32]}  a2 {[%clk 0:00:42]} 49. g3 {[%clk 0:00:29]}  Kb2 {[%clk 0:00:39]} 50. Kc4 {[%clk 0:00:23]}  Ba3 {[%clk 0:00:37]} 0-1


[Site "https://www.chess.com"]

[Event "Titled Tuesday Blitz August 08 Early 2023"]
[White "Carrasco Miranda, Andres"]
[Black "Sailer, Mike"]
[WhiteFideId "3405990"]
[BlackFideId "2012901"]
[WhiteElo "2370"]
[BlackElo "2154"]
[Result "0-1"]
[Round "5"]
[TimeControl "180+1"]
[Date "2023.08.08"]
[WhiteClock "0:00:02"]
[BlackClock "0:00:07"]
[Board "213"]

1. d4 {[%clk 0:03:00]}  d5 {[%clk 0:02:58]} 2. c4 {[%clk 0:02:59]}  Bf5 {[%clk 0:02:57]} 3. cxd5 {[%clk 0:02:58]}  Bxb1 {[%clk 0:02:57]} 4. Qa4+ {[%clk 0:02:58]}  Qd7 {[%clk 0:02:56]} 5. Qxd7+ {[%clk 0:02:57]}  Nxd7 {[%clk 0:02:57]} 6. Rxb1 {[%clk 0:02:57]}  Ngf6 {[%clk 0:02:56]} 7. Nf3 {[%clk 0:02:50]}  Nb6 {[%clk 0:02:56]} 8. e3 {[%clk 0:02:38]}  Nbxd5 {[%clk 0:02:55]} 9. Bd2 {[%clk 0:02:35]}  Ne4 {[%clk 0:02:54]} 10. Bd3 {[%clk 0:02:34]}  Nxd2 {[%clk 0:02:53]} 11. Kxd2 {[%clk 0:02:35]}  e6 {[%clk 0:02:51]} 12. a3 {[%clk 0:02:35]}  a5 {[%clk 0:02:46]} 13. Rhc1 {[%clk 0:02:34]}  c6 {[%clk 0:02:46]} 14. g3 {[%clk 0:02:34]}  Bd6 {[%clk 0:02:37]} 15. Ng5 {[%clk 0:02:28]}  h6 {[%clk 0:02:33]} 16. Ne4 {[%clk 0:02:27]}  Be7 {[%clk 0:02:28]} 17. Nc5 {[%clk 0:02:26]}  Bxc5 {[%clk 0:02:26]} 18. Rxc5 {[%clk 0:02:27]}  Kd7 {[%clk 0:02:19]} 19. h4 {[%clk 0:01:58]}  Rhc8 {[%clk 0:02:08]} 20. g4 {[%clk 0:01:54]}  b6 {[%clk 0:01:45]} 21. Rcc1 {[%clk 0:01:52]}  c5 {[%clk 0:01:40]} 22. dxc5 {[%clk 0:01:50]}  Rxc5 {[%clk 0:01:36]} 23. Rxc5 {[%clk 0:01:49]}  bxc5 {[%clk 0:01:35]} 24. Bb5+ {[%clk 0:01:42]}  Kd6 {[%clk 0:01:35]} 25. f4 {[%clk 0:01:32]}  Rb8 {[%clk 0:01:35]} 26. Bc4 {[%clk 0:01:18]}  Nb6 {[%clk 0:01:34]} 27. Be2 {[%clk 0:01:11]}  Nd5 {[%clk 0:01:24]} 28. Bf3 {[%clk 0:01:04]}  Rb3 {[%clk 0:01:18]} 29. Bxd5 {[%clk 0:00:56]}  exd5 {[%clk 0:01:18]} 30. g5 {[%clk 0:00:52]}  h5 {[%clk 0:01:15]} 31. Ke2 {[%clk 0:00:36]}  c4 {[%clk 0:01:10]} 32. Kd2 {[%clk 0:00:37]}  Kc5 {[%clk 0:01:03]} 33. f5 {[%clk 0:00:34]}  a4 {[%clk 0:00:48]} 34. g6 {[%clk 0:00:27]}  fxg6 {[%clk 0:00:42]} 35. fxg6 {[%clk 0:00:28]}  Rb6 {[%clk 0:00:39]} 36. e4 {[%clk 0:00:24]}  d4 {[%clk 0:00:36]} 37. Rg1 {[%clk 0:00:21]}  Rxb2+ {[%clk 0:00:35]} 38. Kc1 {[%clk 0:00:21]}  c3 {[%clk 0:00:33]} 39. Rg5+ {[%clk 0:00:16]}  Kc4 {[%clk 0:00:33]} 40. Rxh5 {[%clk 0:00:10]}  d3 {[%clk 0:00:32]} 41. Rd5 {[%clk 0:00:11]}  Rg2 {[%clk 0:00:15]} 42. Kb1 {[%clk 0:00:11]}  Rxg6 {[%clk 0:00:14]} 43. h5 {[%clk 0:00:09]}  Rg1+ {[%clk 0:00:11]} 44. Ka2 {[%clk 0:00:09]}  d2 {[%clk 0:00:10]} 45. h6 {[%clk 0:00:08]}  gxh6 {[%clk 0:00:10]} 46. e5 {[%clk 0:00:02]}  d1=Q {[%clk 0:00:10]} 47. Rxd1 {[%clk 0:00:01]}  Rxd1 {[%clk 0:00:10]} 48. e6 {[%clk 0:00:02]}  c2 {[%clk 0:00:09]} 49. e7 {[%clk 0:00:02]}  c1=Q {[%clk 0:00:08]} 50. e8=Q {[%clk 0:00:02]}  Qb1# {[%clk 0:00:07]} 0-1


[Site "https://www.chess.com"]

[Event "Titled Tuesday Blitz August 08 Early 2023"]
[White "Novikova, Margarita"]
[Black "Der_Balak_3Halak"]
[WhiteFideId "14109689"]
[WhiteElo "2115"]
[BlackElo "2362"]
[Result "0-1"]
[Round "5"]
[TimeControl "180+1"]
[Date "2023.08.08"]
[WhiteClock "0:00:00"]
[BlackClock "0:00:10"]
[Board "214"]

1. e4 {[%clk 0:03:00]}  c5 {[%clk 0:02:59]} 2. d3 {[%clk 0:02:06]}  g6 {[%clk 0:02:56]} 3. Be3 {[%clk 0:02:05]}  Bg7 {[%clk 0:02:51]} 4. Nc3 {[%clk 0:02:02]}  d6 {[%clk 0:02:43]} 5. Qd2 {[%clk 0:01:59]}  Nc6 {[%clk 0:02:40]} 6. g3 {[%clk 0:01:58]}  Nf6 {[%clk 0:02:35]} 7. Bh6 {[%clk 0:01:57]}  Bxh6 {[%clk 0:02:33]} 8. Qxh6 {[%clk 0:01:58]}  Nd4 {[%clk 0:02:33]} 9. Qd2 {[%clk 0:01:50]}  b5 {[%clk 0:02:30]} 10. Nd1 {[%clk 0:01:49]}  Bg4 {[%clk 0:02:16]} 11. Bg2 {[%clk 0:01:47]}  Rc8 {[%clk 0:02:03]} 12. c3 {[%clk 0:01:45]}  Nc6 {[%clk 0:02:03]} 13. Ne3 {[%clk 0:01:38]}  O-O {[%clk 0:01:57]} 14. Nxg4 {[%clk 0:01:37]}  Nxg4 {[%clk 0:01:57]} 15. Bh3 {[%clk 0:01:24]}  f5 {[%clk 0:01:26]} 16. exf5 {[%clk 0:01:22]}  gxf5 {[%clk 0:01:23]} 17. Bxg4 {[%clk 0:01:09]}  fxg4 {[%clk 0:01:21]} 18. Qg5+ {[%clk 0:01:10]}  Kh8 {[%clk 0:01:20]} 19. Qxg4 {[%clk 0:01:10]}  Ne5 {[%clk 0:01:19]} 20. Qe2 {[%clk 0:01:09]}  Qb6 {[%clk 0:01:05]} 21. f4 {[%clk 0:01:07]}  Ng6 {[%clk 0:01:03]} 22. Nf3 {[%clk 0:01:00]}  e5 {[%clk 0:01:00]} 23. fxe5 {[%clk 0:00:55]}  dxe5 {[%clk 0:00:58]} 24. O-O-O {[%clk 0:00:52]}  b4 {[%clk 0:00:41]} 25. c4 {[%clk 0:00:49]}  Rce8 {[%clk 0:00:24]} 26. Ng5 {[%clk 0:00:44]}  Qa6 {[%clk 0:00:17]} 27. Kb1 {[%clk 0:00:43]}  Qf6 {[%clk 0:00:16]} 28. Ne4 {[%clk 0:00:42]}  Qg7 {[%clk 0:00:15]} 29. h4 {[%clk 0:00:40]}  Ne7 {[%clk 0:00:15]} 30. Ng5 {[%clk 0:00:35]}  Nc6 {[%clk 0:00:14]} 31. Rhf1 {[%clk 0:00:25]}  Nd4 {[%clk 0:00:14]} 32. Qe4 {[%clk 0:00:25]}  Rxf1 {[%clk 0:00:13]} 33. Rxf1 {[%clk 0:00:25]}  h6 {[%clk 0:00:12]} 34. Nf7+ {[%clk 0:00:24]}  Kg8 {[%clk 0:00:13]} 35. Nd6 {[%clk 0:00:24]}  Rf8 {[%clk 0:00:13]} 36. Re1 {[%clk 0:00:18]}  Rf2 {[%clk 0:00:12]} 37. Qxe5 {[%clk 0:00:17]}  Qxe5 {[%clk 0:00:10]} 38. Rxe5 {[%clk 0:00:00]}  Rf1+ {[%clk 0:00:10]} 0-1


[Site "https://www.chess.com"]

[Event "Titled Tuesday Blitz August 08 Early 2023"]
[White "Krzywda, Andrzej"]
[Black "Maluco_do_Natal_00"]
[WhiteFideId "1114565"]
[WhiteElo "2358"]
[BlackElo "2074"]
[Result "1-0"]
[Round "5"]
[TimeControl "180+1"]
[Date "2023.08.08"]
[WhiteClock "0:01:22"]
[BlackClock "0:00:24"]
[Board "217"]

1. e4 {[%clk 0:02:57]}  c5 {[%clk 0:02:54]} 2. Nf3 {[%clk 0:02:57]}  Nc6 {[%clk 0:02:53]} 3. d4 {[%clk 0:02:57]}  cxd4 {[%clk 0:02:54]} 4. Nxd4 {[%clk 0:02:58]}  Nf6 {[%clk 0:02:53]} 5. Nc3 {[%clk 0:02:59]}  e5 {[%clk 0:02:53]} 6. Ndb5 {[%clk 0:02:59]}  d6 {[%clk 0:02:53]} 7. Bg5 {[%clk 0:02:58]}  a6 {[%clk 0:02:54]} 8. Na3 {[%clk 0:02:59]}  b5 {[%clk 0:02:54]} 9. Nd5 {[%clk 0:02:59]}  Be7 {[%clk 0:02:54]} 10. Bxf6 {[%clk 0:03:00]}  Bxf6 {[%clk 0:02:54]} 11. c4 {[%clk 0:03:01]}  Qa5+ {[%clk 0:02:45]} 12. Qd2 {[%clk 0:02:49]}  Qxd2+ {[%clk 0:02:44]} 13. Kxd2 {[%clk 0:02:49]}  Bg5+ {[%clk 0:02:44]} 14. Kc3 {[%clk 0:02:36]}  b4+ {[%clk 0:02:36]} 15. Nxb4 {[%clk 0:02:35]}  Nxb4 {[%clk 0:02:35]} 16. Kxb4 {[%clk 0:02:35]}  Rb8+ {[%clk 0:02:36]} 17. Kc3 {[%clk 0:02:35]}  Be6 {[%clk 0:02:32]} 18. b4 {[%clk 0:02:28]}  O-O {[%clk 0:02:26]} 19. h4 {[%clk 0:02:27]}  Bd8 {[%clk 0:02:21]} 20. Bd3 {[%clk 0:02:21]}  a5 {[%clk 0:02:21]} 21. Nb5 {[%clk 0:02:17]}  axb4+ {[%clk 0:02:17]} 22. Kxb4 {[%clk 0:02:11]}  Bb6 {[%clk 0:02:16]} 23. f3 {[%clk 0:02:04]}  Bc5+ {[%clk 0:02:13]} 24. Kc3 {[%clk 0:02:00]}  Rfc8 {[%clk 0:02:00]} 25. Rab1 {[%clk 0:02:00]}  h5 {[%clk 0:01:45]} 26. Rhc1 {[%clk 0:01:53]}  Be3 {[%clk 0:01:44]} 27. Rc2 {[%clk 0:01:50]}  Rc5 {[%clk 0:01:36]} 28. a4 {[%clk 0:01:47]}  Ra8 {[%clk 0:01:09]} 29. Ra2 {[%clk 0:01:43]}  Ra5 {[%clk 0:01:03]} 30. Nxd6 {[%clk 0:01:41]}  Bd4+ {[%clk 0:01:03]} 31. Kd2 {[%clk 0:01:40]}  Bf2 {[%clk 0:01:02]} 32. Nb7 {[%clk 0:01:39]}  Bxh4 {[%clk 0:00:53]} 33. Nxc5 {[%clk 0:01:35]}  Rxc5 {[%clk 0:00:53]} 34. a5 {[%clk 0:01:33]}  Bg5+ {[%clk 0:00:52]} 35. Ke2 {[%clk 0:01:32]}  Bxc4 {[%clk 0:00:34]} 36. Bxc4 {[%clk 0:01:23]}  Rxc4 {[%clk 0:00:34]} 37. a6 {[%clk 0:01:24]}  Rc3 {[%clk 0:00:29]} 38. a7 {[%clk 0:01:22]}  Re3+ {[%clk 0:00:24]} 39. Kf2 {[%clk 0:01:22]} 1-0


[Site "https://www.chess.com"]